[Event "Live Chess"]
[Site "Chess.com"]
[Date "2023.05.20"]
[Round "-"]
[White "MarkLim1"]
[Black "BostonStrangler"]
[Result "0-1"]
[WhiteElo "1652"]
[BlackElo "2054"]
[TimeControl "300"]
[EndTime "13:46:51 PDT"]
[Termination "BostonStrangler won by resignation"]

1. d4 {[%clk 0:04:58.8]} 1... Nf6 {[%clk 0:04:58.6]} 2. Nf3 {[%clk 0:04:58.2]}
2... g6 {[%clk 0:04:56.6]} 3. c4 {[%clk 0:04:57.2]} 3... c5 {[%clk 0:04:55.2]}
4. d5 {[%clk 0:04:56.3]} 4... b5 {[%clk 0:04:54.1]} 5. Nbd2 {[%clk 0:04:53.3]}
5... bxc4 {[%clk 0:04:46.8]} 6. Nxc4 {[%clk 0:04:51.7]} 6... Bg7 {[%clk
0:04:39.5]} 7. Qc2 {[%clk 0:04:50.9]} 7... O-O {[%clk 0:04:37.4]} 8. e4 {[%clk
0:04:49.9]} 8... e6 {[%clk 0:04:34.4]} 9. dxe6 {[%clk 0:04:47.6]} 9... fxe6
{[%clk 0:04:31.7]} 10. Bd3 {[%clk 0:04:44.6]} 10... d5 {[%clk 0:04:29]} 11. exd5
{[%clk 0:04:43.9]} 11... exd5 {[%clk 0:04:27.9]} 12. Ne3 {[%clk 0:04:40.9]}
12... c4 {[%clk 0:04:23.5]} 13. Be2 {[%clk 0:04:39.2]} 13... Nc6 {[%clk
0:04:15]} 14. Bxc4 {[%clk 0:04:32.3]} 14... Nb4 {[%clk 0:03:57.4]} 15. Qb3
{[%clk 0:04:27.4]} 15... Qe7 {[%clk 0:03:21]} 16. Be2 {[%clk 0:04:19.7]} 16...
Be6 {[%clk 0:03:17.8]} 17. Nd4 {[%clk 0:04:18]} 17... Bf7 {[%clk 0:03:15.9]} 18.
O-O {[%clk 0:04:14.7]} 18... a5 {[%clk 0:03:14.4]} 19. a3 {[%clk 0:04:13]} 19...
Na6 {[%clk 0:03:11.7]} 20. Bd2 {[%clk 0:04:03.5]} 20... Nc5 {[%clk 0:03:07.9]}
21. Qd1 {[%clk 0:03:55.8]} 21... Nfe4 {[%clk 0:03:03.7]} 22. Bc3 {[%clk
0:03:47.6]} 22... Nxc3 {[%clk 0:03:02.1]} 23. bxc3 {[%clk 0:03:46.4]} 23... Ne4
{[%clk 0:02:59.8]} 24. Rc1 {[%clk 0:03:37.2]} 24... Qxa3 {[%clk 0:02:54.6]} 25.
c4 {[%clk 0:03:36.3]} 25... Nc3 {[%clk 0:02:46.2]} 26. Qd3 {[%clk 0:03:28.3]}
26... Bxd4 {[%clk 0:02:43.5]} 27. Rxc3 {[%clk 0:03:19.2]} 27... Qxc3 {[%clk
0:02:38.7]} 0-1

[Event "Live Chess"]
[Site "Chess.com"]
[Date "2023.05.20"]
[Round "-"]
[White "EdvancedChess"]
[Black "seabuck"]
[Result "0-1"]
[WhiteElo "1893"]
[BlackElo "1863"]
[TimeControl "300"]
[EndTime "13:46:54 PDT"]
[Termination "seabuck won by resignation"]

1. e4 {[%clk 0:04:59.7]} 1... e6 {[%clk 0:04:58.3]} 2. Nf3 {[%clk 0:04:59.2]}
2... d5 {[%clk 0:04:57.1]} 3. exd5 {[%clk 0:04:58.1]} 3... exd5 {[%clk
0:04:55.7]} 4. d4 {[%clk 0:04:58]} 4... c6 {[%clk 0:04:55]} 5. Bd3 {[%clk
0:04:57.9]} 5... Bd6 {[%clk 0:04:54]} 6. O-O {[%clk 0:04:56.3]} 6... Ne7 {[%clk
0:04:53.1]} 7. Bg5 {[%clk 0:04:55.5]} 7... f6 {[%clk 0:04:51.8]} 8. Bh4 {[%clk
0:04:54.9]} 8... O-O {[%clk 0:04:50.5]} 9. c3 {[%clk 0:04:54.4]} 9... Bf5 {[%clk
0:04:46]} 10. Re1 {[%clk 0:04:52.5]} 10... Bxd3 {[%clk 0:04:41.2]} 11. Qxd3
{[%clk 0:04:51.3]} 11... Nd7 {[%clk 0:04:38.8]} 12. Bg3 {[%clk 0:04:48.6]} 12...
Bxg3 {[%clk 0:04:35.5]} 13. hxg3 {[%clk 0:04:46.8]} 13... Re8 {[%clk 0:04:33.9]}
14. Nh4 {[%clk 0:04:45.1]} 14... Nf8 {[%clk 0:04:30.6]} 15. Nd2 {[%clk
0:04:43.5]} 15... Nfg6 {[%clk 0:04:29.7]} 16. Ndf3 {[%clk 0:04:42.2]} 16... Qd7
{[%clk 0:04:24.2]} 17. a3 {[%clk 0:04:31.7]} 17... Kf7 {[%clk 0:04:22]} 18. Rad1
{[%clk 0:04:28.2]} 18... Nxh4 {[%clk 0:04:20]} 19. Nxh4 {[%clk 0:04:25.7]} 19...
Ng6 {[%clk 0:04:18]} 20. Nf5 {[%clk 0:04:21.7]} 20... Rxe1+ {[%clk 0:04:07.3]}
21. Rxe1 {[%clk 0:04:20.3]} 21... Re8 {[%clk 0:04:02.6]} 22. Rxe8 {[%clk
0:04:13.7]} 22... Kxe8 {[%clk 0:04:00.7]} 23. Qe2+ {[%clk 0:03:56]} 23... Kf7
{[%clk 0:03:56.6]} 24. Qh5 {[%clk 0:03:53.8]} 24... Qe6 {[%clk 0:03:42.7]} 25.
Kf1 {[%clk 0:03:52.1]} 25... b6 {[%clk 0:03:22.7]} 26. g4 {[%clk 0:03:36.7]}
26... Kg8 {[%clk 0:03:16.8]} 27. f3 {[%clk 0:03:30.1]} 27... Nf4 {[%clk
0:03:07]} 28. Qh2 {[%clk 0:03:28.4]} 28... Qe2+ {[%clk 0:02:55.4]} 0-1

[Event "Live Chess"]
[Site "Chess.com"]
[Date "2023.05.20"]
[Round "-"]
[White "ExIsambard"]
[Black "xx_blindpuffin_xx"]
[Result "1-0"]
[WhiteElo "2000"]
[BlackElo "2184"]
[TimeControl "300"]
[EndTime "13:47:08 PDT"]
[Termination "ExIsambard won by resignation"]

1. d4 {[%clk 0:04:58.7]} 1... Nf6 {[%clk 0:04:57.7]} 2. Nf3 {[%clk 0:04:57.4]}
2... c5 {[%clk 0:04:55.6]} 3. c3 {[%clk 0:04:55.7]} 3... g6 {[%clk 0:04:50.3]}
4. Bg5 {[%clk 0:04:54]} 4... Bg7 {[%clk 0:04:45]} 5. e3 {[%clk 0:04:53.1]} 5...
cxd4 {[%clk 0:04:43.6]} 6. exd4 {[%clk 0:04:52.1]} 6... O-O {[%clk 0:04:42.5]}
7. Bd3 {[%clk 0:04:51.1]} 7... b6 {[%clk 0:04:41.4]} 8. Qe2 {[%clk 0:04:45.3]}
8... Bb7 {[%clk 0:04:39.7]} 9. Nbd2 {[%clk 0:04:44.5]} 9... d6 {[%clk 0:04:38]}
10. h4 {[%clk 0:04:42.5]} 10... Nbd7 {[%clk 0:04:33.7]} 11. h5 {[%clk
0:04:40.2]} 11... Nxh5 {[%clk 0:04:30.2]} 12. Rxh5 {[%clk 0:04:38.3]} 12... gxh5
{[%clk 0:04:28.8]} 13. Nh4 {[%clk 0:04:37.3]} 13... Nf6 {[%clk 0:04:21.5]} 14.
Bxf6 {[%clk 0:04:33.6]} 14... exf6 {[%clk 0:03:54.6]} 15. Qxh5 {[%clk
0:04:26.6]} 15... Re8+ {[%clk 0:03:53.6]} 16. Kd1 {[%clk 0:04:22.7]} 16... f5
{[%clk 0:03:33.6]} 17. Nxf5 {[%clk 0:04:13.4]} 17... Qf6 {[%clk 0:03:31.9]} 18.
Kc2 {[%clk 0:04:06.6]} 18... Bc8 {[%clk 0:03:11.5]} 19. Rh1 {[%clk 0:03:58.1]}
19... Bxf5 {[%clk 0:03:08.7]} 20. Bxf5 {[%clk 0:03:56.6]} 20... h6 {[%clk
0:03:04.8]} 21. Ne4 {[%clk 0:03:44.3]} 21... Rxe4 {[%clk 0:02:58.5]} 22. Bxe4
{[%clk 0:03:41.7]} 22... Re8 {[%clk 0:02:57.6]} 23. f3 {[%clk 0:03:36.6]} 23...
Qg5 {[%clk 0:02:41.6]} 24. Qh2 {[%clk 0:03:14]} 24... d5 {[%clk 0:02:36.9]} 25.
Bd3 {[%clk 0:03:10.1]} 25... Rc8 {[%clk 0:02:19.2]} 26. Qh3 {[%clk 0:02:52.9]}
26... Rc7 {[%clk 0:02:14.1]} 27. Qh2 {[%clk 0:02:47.2]} 27... Rc8 {[%clk
0:02:11.2]} 28. Re1 {[%clk 0:02:43]} 28... Bxd4 {[%clk 0:02:07]} 29. f4 {[%clk
0:02:24.9]} 29... Qg7 {[%clk 0:02:05.4]} 30. Qh3 {[%clk 0:02:21.1]} 30... Rd8
{[%clk 0:01:31.5]} 31. cxd4 {[%clk 0:02:19.6]} 31... Qf6 {[%clk 0:01:28]} 32.
Qg4+ {[%clk 0:01:53]} 32... Kh8 {[%clk 0:01:26]} 33. Qf5 {[%clk 0:01:50.5]}
33... Qg7 {[%clk 0:01:18]} 34. g4 {[%clk 0:01:46.3]} 34... Rf8 {[%clk
0:01:05.2]} 35. Rh1 {[%clk 0:01:44.1]} 35... Kg8 {[%clk 0:01:02.8]} 36. g5
{[%clk 0:01:40]} 36... hxg5 {[%clk 0:01:00.8]} 37. Qxg5 {[%clk 0:01:30.6]} 37...
Qxg5 {[%clk 0:00:59.1]} 38. fxg5 {[%clk 0:01:30.3]} 38... Re8 {[%clk 0:00:54.1]}
39. g6 {[%clk 0:01:25.5]} 39... fxg6 {[%clk 0:00:51.5]} 40. Bxg6 {[%clk
0:01:24.8]} 40... Re2+ {[%clk 0:00:50.5]} 41. Kb3 {[%clk 0:01:23.3]} 41... Rd2
{[%clk 0:00:47.8]} 42. Rh4 {[%clk 0:01:21.7]} 42... Kg7 {[%clk 0:00:46]} 43. Bf5
{[%clk 0:01:20.4]} 43... Kf6 {[%clk 0:00:45.2]} 44. Bc8 {[%clk 0:01:18.8]} 44...
Kg5 {[%clk 0:00:42]} 45. Rg4+ {[%clk 0:01:16.1]} 45... Kh5 {[%clk 0:00:41.5]}
46. Kc3 {[%clk 0:01:15.1]} 46... Rd1 {[%clk 0:00:40.2]} 47. Rg8 {[%clk
0:01:11.1]} 47... a5 {[%clk 0:00:36.9]} 48. Bb7 {[%clk 0:01:08.7]} 48... Rc1+
{[%clk 0:00:34.7]} 49. Kd2 {[%clk 0:01:05.9]} 49... Rb1 {[%clk 0:00:32.2]} 50.
Kc2 {[%clk 0:01:01.5]} 1-0

[Event "Live Chess"]
[Site "Chess.com"]
[Date "2023.05.20"]
[Round "-"]
[White "NAZRIZ1977"]
[Black "Delacorta"]
[Result "1-0"]
[WhiteElo "2051"]
[BlackElo "1421"]
[TimeControl "300"]
[EndTime "13:47:18 PDT"]
[Termination "NAZRIZ1977 won by resignation"]

1. d4 {[%clk 0:04:58.4]} 1... e6 {[%clk 0:04:59.1]} 2. Nc3 {[%clk 0:04:57.6]}
2... f5 {[%clk 0:04:58.5]} 3. e4 {[%clk 0:04:56.5]} 3... fxe4 {[%clk 0:04:56.6]}
4. Nxe4 {[%clk 0:04:55.7]} 4... Nf6 {[%clk 0:04:55.7]} 5. Bg5 {[%clk 0:04:55.1]}
5... Be7 {[%clk 0:04:54.7]} 6. Bxf6 {[%clk 0:04:54.5]} 6... Bxf6 {[%clk
0:04:54]} 7. Nf3 {[%clk 0:04:54]} 7... O-O {[%clk 0:04:52]} 8. Bd3 {[%clk
0:04:53.4]} 8... d5 {[%clk 0:04:51]} 9. Ned2 {[%clk 0:04:51.2]} 9... Bd7 {[%clk
0:04:50.4]} 10. Qe2 {[%clk 0:04:49.9]} 10... Re8 {[%clk 0:04:47.7]} 11. O-O-O
{[%clk 0:04:49.2]} 11... e5 {[%clk 0:04:46.7]} 12. Nxe5 {[%clk 0:04:46.2]} 12...
Bxe5 {[%clk 0:04:45.7]} 13. dxe5 {[%clk 0:04:45.6]} 13... Qc8 {[%clk 0:04:41.2]}
14. f4 {[%clk 0:04:41.6]} 14... Bg4 {[%clk 0:04:39.7]} 15. Nf3 {[%clk
0:04:41.1]} 15... Nd7 {[%clk 0:04:36.7]} 16. h3 {[%clk 0:04:39.6]} 16... Bxf3
{[%clk 0:04:33.2]} 17. Qxf3 {[%clk 0:04:38.8]} 17... Nc5 {[%clk 0:04:32.4]} 18.
Qxd5+ {[%clk 0:04:31.8]} 18... Ne6 {[%clk 0:04:31.7]} 19. f5 {[%clk 0:04:29.7]}
19... Rd8 {[%clk 0:04:28.5]} 20. Qb3 {[%clk 0:04:26.5]} 1-0

[Event "Live Chess"]
[Site "Chess.com"]
[Date "2023.05.20"]
[Round "-"]
[White "trekker123"]
[Black "stevochess11"]
[Result "1-0"]
[WhiteElo "2090"]
[BlackElo "1794"]
[TimeControl "300"]
[EndTime "13:47:20 PDT"]
[Termination "trekker123 won by resignation"]

1. d4 {[%clk 0:04:57.5]} 1... Nf6 {[%clk 0:04:57.9]} 2. Nf3 {[%clk 0:04:56.5]}
2... g6 {[%clk 0:04:57]} 3. Nc3 {[%clk 0:04:55.2]} 3... d5 {[%clk 0:04:54.8]} 4.
Bf4 {[%clk 0:04:50.6]} 4... Bg7 {[%clk 0:04:52.7]} 5. Nb5 {[%clk 0:04:49.9]}
5... Na6 {[%clk 0:04:48.1]} 6. e3 {[%clk 0:04:48.3]} 6... c6 {[%clk 0:04:46]} 7.
Nc3 {[%clk 0:04:46.3]} 7... O-O {[%clk 0:04:42.6]} 8. Bxa6 {[%clk 0:04:44.1]}
8... bxa6 {[%clk 0:04:41.1]} 9. O-O {[%clk 0:04:35.9]} 9... Rb8 {[%clk
0:04:39.9]} 10. b3 {[%clk 0:04:29.3]} 10... Ne4 {[%clk 0:04:37]} 11. Nxe4 {[%clk
0:04:21.3]} 11... dxe4 {[%clk 0:04:36.9]} 12. Bxb8 {[%clk 0:04:18.5]} 12... exf3
{[%clk 0:04:34.9]} 13. Qxf3 {[%clk 0:04:14.8]} 13... h5 {[%clk 0:04:25.2]} 14.
Bxa7 {[%clk 0:03:46]} 14... Bg4 {[%clk 0:04:21]} 15. Qg3 {[%clk 0:03:40.3]}
15... e6 {[%clk 0:04:11.4]} 16. Bc5 {[%clk 0:03:35.5]} 16... Re8 {[%clk
0:04:09.6]} 17. h3 {[%clk 0:03:33]} 17... Bf5 {[%clk 0:04:07.1]} 18. c4 {[%clk
0:03:22.1]} 18... Bf6 {[%clk 0:03:59.2]} 19. Qd6 {[%clk 0:03:07.6]} 19... Qa5
{[%clk 0:03:55.7]} 20. Qxc6 {[%clk 0:02:56.9]} 20... Qd2 {[%clk 0:03:49]} 21.
Qxe8+ {[%clk 0:02:54.4]} 1-0

[Event "Live Chess"]
[Site "Chess.com"]
[Date "2023.05.20"]
[Round "-"]
[White "Brooms1989"]
[Black "raminguy"]
[Result "0-1"]
[WhiteElo "1018"]
[BlackElo "1964"]
[TimeControl "300"]
[EndTime "13:47:22 PDT"]
[Termination "raminguy won by resignation"]

1. e4 {[%clk 0:04:57]} 1... e5 {[%clk 0:04:59]} 2. Nc3 {[%clk 0:04:56.1]} 2...
Nc6 {[%clk 0:04:58.9]} 3. Bc4 {[%clk 0:04:53.5]} 3... Nf6 {[%clk 0:04:58.3]} 4.
f4 {[%clk 0:04:50.9]} 4... exf4 {[%clk 0:04:55.6]} 5. d4 {[%clk 0:04:49.5]} 5...
g5 {[%clk 0:04:49.2]} 6. e5 {[%clk 0:04:45.3]} 6... Ng8 {[%clk 0:04:43]} 7. Nf3
{[%clk 0:04:42.7]} 7... h6 {[%clk 0:04:41.6]} 8. O-O {[%clk 0:04:40.9]} 8... Bg7
{[%clk 0:04:40.4]} 9. b3 {[%clk 0:04:14.3]} 9... d6 {[%clk 0:04:38.4]} 10. exd6
{[%clk 0:04:11.4]} 10... cxd6 {[%clk 0:04:31.4]} 11. Re1+ {[%clk 0:04:07.4]}
11... Nge7 {[%clk 0:04:30.5]} 12. Qd3 {[%clk 0:04:00.6]} 12... O-O {[%clk
0:04:29]} 13. Qe4 {[%clk 0:03:31.6]} 13... Bf5 {[%clk 0:04:25.1]} 14. Qe2 {[%clk
0:03:21.3]} 14... Nxd4 {[%clk 0:04:22.7]} 15. Nxd4 {[%clk 0:03:19.8]} 15...
Bxd4+ {[%clk 0:04:21]} 16. Kh1 {[%clk 0:03:17.9]} 16... Bxc3 {[%clk 0:04:20]}
17. Rb1 {[%clk 0:03:13.7]} 17... Bxe1 {[%clk 0:04:18.2]} 18. Qxe1 {[%clk
0:03:13.6]} 18... d5 {[%clk 0:04:15.1]} 19. Bd3 {[%clk 0:03:09.6]} 19... Bxd3
{[%clk 0:04:13.4]} 20. cxd3 {[%clk 0:03:09.5]} 20... Ng6 {[%clk 0:04:11.7]} 21.
Bb2 {[%clk 0:03:08.5]} 21... Qd6 {[%clk 0:04:00.8]} 22. Rc1 {[%clk 0:02:59.9]}
22... Rac8 {[%clk 0:03:57.7]} 23. d4 {[%clk 0:02:53.5]} 23... Qe6 {[%clk
0:03:47.1]} 24. Qxe6 {[%clk 0:02:46.4]} 24... Rxc1+ {[%clk 0:03:45.1]} 25. Bxc1
{[%clk 0:02:44.8]} 25... fxe6 {[%clk 0:03:44.4]} 26. Kg1 {[%clk 0:02:41]} 26...
Rc8 {[%clk 0:03:42.6]} 27. Bd2 {[%clk 0:02:38.8]} 27... Rc2 {[%clk 0:03:41.5]}
28. Bb4 {[%clk 0:02:36.7]} 28... Rxa2 {[%clk 0:03:39.6]} 0-1

[Event "Live Chess"]
[Site "Chess.com"]
[Date "2023.05.20"]
[Round "-"]
[White "whitedjohn"]
[Black "VovaOvchar1990"]
[Result "1-0"]
[WhiteElo "1652"]
[BlackElo "1211"]
[TimeControl "300"]
[EndTime "13:47:24 PDT"]
[Termination "whitedjohn won by checkmate"]

1. e4 {[%clk 0:04:55.9]} 1... e5 {[%clk 0:04:58.8]} 2. Nf3 {[%clk 0:04:51.1]}
2... Nc6 {[%clk 0:04:57.6]} 3. Bb5 {[%clk 0:04:47.4]} 3... Bc5 {[%clk
0:04:53.5]} 4. O-O {[%clk 0:04:43.6]} 4... d6 {[%clk 0:04:52.2]} 5. h3 {[%clk
0:04:38.5]} 5... Nf6 {[%clk 0:04:47.2]} 6. Bxc6+ {[%clk 0:04:36.8]} 6... bxc6
{[%clk 0:04:44.1]} 7. Re1 {[%clk 0:04:35.3]} 7... O-O {[%clk 0:04:32.5]} 8. d4
{[%clk 0:04:34.8]} 8... Bxd4 {[%clk 0:04:26.7]} 9. Nxd4 {[%clk 0:04:34.2]} 9...
exd4 {[%clk 0:04:25.4]} 10. Qxd4 {[%clk 0:04:33.2]} 10... c5 {[%clk 0:04:22.2]}
11. Qd3 {[%clk 0:04:20.9]} 11... Nh5 {[%clk 0:04:14]} 12. Nc3 {[%clk 0:04:07.4]}
12... f5 {[%clk 0:04:06.3]} 13. Qd5+ {[%clk 0:03:53.3]} 13... Kh8 {[%clk
0:03:57.1]} 14. Qxa8 {[%clk 0:03:51.5]} 14... fxe4 {[%clk 0:03:52.6]} 15. Qxe4
{[%clk 0:03:39.2]} 15... Qf6 {[%clk 0:03:36]} 16. Be3 {[%clk 0:03:32.1]} 16...
Bf5 {[%clk 0:03:14.6]} 17. Qf3 {[%clk 0:03:28.1]} 17... Qg6 {[%clk 0:02:59.1]}
18. g4 {[%clk 0:03:11.6]} 18... Nf6 {[%clk 0:02:38.4]} 19. Qxf5 {[%clk
0:03:03.7]} 19... Qe8 {[%clk 0:02:21.8]} 20. Bxc5 {[%clk 0:02:42.8]} 20... dxc5
{[%clk 0:02:16.8]} 21. Rxe8 {[%clk 0:02:39.4]} 21... Nxe8 {[%clk 0:02:13.9]} 22.
Qxf8# {[%clk 0:02:35.6]} 1-0

[Event "Live Chess"]
[Site "Chess.com"]
[Date "2023.05.20"]
[Round "-"]
[White "Ed_Knox"]
[Black "omisoc"]
[Result "0-1"]
[WhiteElo "1508"]
[BlackElo "2143"]
[TimeControl "300"]
[EndTime "13:47:25 PDT"]
[Termination "omisoc won on time"]

1. d4 {[%clk 0:04:56.6]} 1... Nf6 {[%clk 0:04:57.7]} 2. Bf4 {[%clk 0:04:54.6]}
2... d6 {[%clk 0:04:55.6]} 3. e3 {[%clk 0:04:51]} 3... b6 {[%clk 0:04:54.5]} 4.
Nf3 {[%clk 0:04:49.1]} 4... Ba6 {[%clk 0:04:53.1]} 5. Bxa6 {[%clk 0:04:43.6]}
5... Nxa6 {[%clk 0:04:53]} 6. c3 {[%clk 0:04:42]} 6... Qd7 {[%clk 0:04:52]} 7.
Nbd2 {[%clk 0:04:31.6]} 7... g6 {[%clk 0:04:50.4]} 8. O-O {[%clk 0:04:28.8]}
8... Bg7 {[%clk 0:04:49.5]} 9. Qe2 {[%clk 0:04:23.8]} 9... Qc8 {[%clk
0:04:48.5]} 10. Rfe1 {[%clk 0:04:11.7]} 10... O-O {[%clk 0:04:47.4]} 11. e4
{[%clk 0:04:06.4]} 11... c5 {[%clk 0:04:46.3]} 12. d5 {[%clk 0:03:46]} 12... Nc7
{[%clk 0:04:43.9]} 13. h3 {[%clk 0:03:23]} 13... Re8 {[%clk 0:04:37.3]} 14. Qe3
{[%clk 0:03:21.4]} 14... e5 {[%clk 0:04:16.7]} 15. Bh6 {[%clk 0:03:11.2]} 15...
Rf8 {[%clk 0:04:03.3]} 16. Nc4 {[%clk 0:02:45.3]} 16... Nce8 {[%clk 0:03:58.5]}
17. Qg5 {[%clk 0:02:28.8]} 17... Qd8 {[%clk 0:03:43.8]} 18. Bxg7 {[%clk
0:02:12.9]} 18... Kxg7 {[%clk 0:03:37]} 19. Qh4 {[%clk 0:01:50.3]} 19... Nh5
{[%clk 0:03:32]} 20. Ng5 {[%clk 0:01:42.5]} 20... h6 {[%clk 0:03:23.8]} 21. Nf3
{[%clk 0:01:16]} 21... g5 {[%clk 0:03:12.1]} 22. Qxh5 {[%clk 0:01:14.2]} 22...
Nf6 {[%clk 0:03:10]} 23. Nxg5 {[%clk 0:00:31.8]} 23... Nxh5 {[%clk 0:03:05.2]}
24. Re3 {[%clk 0:00:22.1]} 24... hxg5 {[%clk 0:02:59]} 25. Rg3 {[%clk
0:00:19.3]} 25... Nxg3 {[%clk 0:02:56.9]} 26. fxg3 {[%clk 0:00:18.1]} 26... f5
{[%clk 0:02:55.9]} 27. exf5 {[%clk 0:00:12.8]} 27... Rxf5 {[%clk 0:02:53.6]} 28.
Rf1 {[%clk 0:00:11.7]} 28... Rxf1+ {[%clk 0:02:51]} 29. Kxf1 {[%clk 0:00:10.8]}
29... Qf6+ {[%clk 0:02:50.4]} 30. Kg1 {[%clk 0:00:09]} 30... Rf8 {[%clk
0:02:49.9]} 31. Kh1 {[%clk 0:00:06.8]} 31... e4 {[%clk 0:02:49]} 32. Kg1 {[%clk
0:00:03.5]} 32... Qf1+ {[%clk 0:02:47.3]} 33. Kh2 {[%clk 0:00:01.4]} 33... Qxc4
{[%clk 0:02:47.2]} 0-1

[Event "Live Chess"]
[Site "Chess.com"]
[Date "2023.05.20"]
[Round "-"]
[White "SirEntrails"]
[Black "TheSmoulderingMaster"]
[Result "0-1"]
[WhiteElo "535"]
[BlackElo "1732"]
[TimeControl "300"]
[EndTime "13:47:26 PDT"]
[Termination "TheSmoulderingMaster won by checkmate"]

1. e4 {[%clk 0:04:53.4]} 1... c5 {[%clk 0:04:59]} 2. Nf3 {[%clk 0:04:51.6]} 2...
d6 {[%clk 0:04:58.2]} 3. Bc4 {[%clk 0:04:46.4]} 3... Nc6 {[%clk 0:04:56.7]} 4.
Ng5 {[%clk 0:04:44.6]} 4... e6 {[%clk 0:04:55.5]} 5. O-O {[%clk 0:04:42.1]} 5...
Qxg5 {[%clk 0:04:54]} 6. d3 {[%clk 0:04:35.6]} 6... Qg6 {[%clk 0:04:53]} 7. Nc3
{[%clk 0:04:30]} 7... Nf6 {[%clk 0:04:51.4]} 8. Nb5 {[%clk 0:04:28.1]} 8... Kd8
{[%clk 0:04:41.3]} 9. Qf3 {[%clk 0:04:21.1]} 9... a6 {[%clk 0:04:39.3]} 10. Nc3
{[%clk 0:04:14.3]} 10... Nd4 {[%clk 0:04:37.8]} 11. Qg3 {[%clk 0:04:02.9]} 11...
b5 {[%clk 0:04:36.2]} 12. Qxg6 {[%clk 0:03:58.9]} 12... hxg6 {[%clk 0:04:35]}
13. Bb3 {[%clk 0:03:54.1]} 13... Nxb3 {[%clk 0:04:31.8]} 14. axb3 {[%clk
0:03:50.1]} 14... Bb7 {[%clk 0:04:31.1]} 15. Bg5 {[%clk 0:03:45.3]} 15... Be7
{[%clk 0:04:24.6]} 16. Ne2 {[%clk 0:03:37.1]} 16... Kd7 {[%clk 0:04:22.5]} 17.
c3 {[%clk 0:03:35.9]} 17... Ng4 {[%clk 0:04:21.1]} 18. d4 {[%clk 0:03:32.4]}
18... Bxg5 {[%clk 0:04:19.2]} 19. dxc5 {[%clk 0:03:27]} 19... Rxh2 {[%clk
0:04:16]} 20. cxd6 {[%clk 0:03:20.6]} 20... Rah8 {[%clk 0:04:13.7]} 21. e5
{[%clk 0:03:18.3]} 21... Rh1# {[%clk 0:04:12.3]} 0-1

[Event "Live Chess"]
[Site "Chess.com"]
[Date "2023.05.20"]
[Round "-"]
[White "1600x"]
[Black "Olisingapore"]
[Result "0-1"]
[WhiteElo "1782"]
[BlackElo "1884"]
[TimeControl "300"]
[EndTime "13:47:29 PDT"]
[Termination "Olisingapore won by checkmate"]

1. e4 {[%clk 0:04:55]} 1... c5 {[%clk 0:04:59.1]} 2. Qe2 {[%clk 0:04:53]} 2...
g6 {[%clk 0:04:53.6]} 3. b3 {[%clk 0:04:51.1]} 3... Bg7 {[%clk 0:04:50.7]} 4.
Nc3 {[%clk 0:04:51]} 4... Nc6 {[%clk 0:04:49.1]} 5. Nf3 {[%clk 0:04:48.9]} 5...
e6 {[%clk 0:04:46.6]} 6. e5 {[%clk 0:04:47.7]} 6... Nge7 {[%clk 0:04:45.2]} 7.
Bb2 {[%clk 0:04:46.1]} 7... O-O {[%clk 0:04:44.4]} 8. Ne4 {[%clk 0:04:44.4]}
8... d5 {[%clk 0:04:17.1]} 9. g3 {[%clk 0:04:44.3]} 9... dxe4 {[%clk 0:04:15.7]}
10. Qxe4 {[%clk 0:04:42.8]} 10... Qa5 {[%clk 0:03:57.8]} 11. Bd3 {[%clk
0:04:26.2]} 11... Rd8 {[%clk 0:03:39.3]} 12. O-O {[%clk 0:04:22.9]} 12... Nf5
{[%clk 0:03:22.5]} 13. Rfe1 {[%clk 0:04:20.7]} 13... Nfd4 {[%clk 0:03:19.4]} 14.
Bc3 {[%clk 0:04:15.7]} 14... Nxf3+ {[%clk 0:03:14.6]} 15. Qxf3 {[%clk
0:04:12.9]} 15... Qb6 {[%clk 0:03:14]} 16. Qf4 {[%clk 0:04:10.3]} 16... Nd4
{[%clk 0:03:06.5]} 17. Bxd4 {[%clk 0:03:59.5]} 17... Rxd4 {[%clk 0:03:06.4]} 18.
Re4 {[%clk 0:03:55.7]} 18... Bd7 {[%clk 0:02:43.4]} 19. a4 {[%clk 0:03:49.9]}
19... Bc6 {[%clk 0:02:42]} 20. Rxd4 {[%clk 0:03:47.6]} 20... cxd4 {[%clk
0:02:41.6]} 21. Re1 {[%clk 0:03:44.5]} 21... Rd8 {[%clk 0:02:37.5]} 22. f3
{[%clk 0:03:42.6]} 22... Qa5 {[%clk 0:02:28.9]} 23. h3 {[%clk 0:03:42.5]} 23...
Rd5 {[%clk 0:02:24.6]} 24. Bb5 {[%clk 0:03:40.2]} 24... Bxb5 {[%clk 0:02:19.4]}
25. axb5 {[%clk 0:03:39.2]} 25... Qxb5 {[%clk 0:02:18.3]} 26. d3 {[%clk
0:03:37.8]} 26... Rxe5 {[%clk 0:02:17.2]} 27. Rf1 {[%clk 0:03:35.9]} 27... Rf5
{[%clk 0:02:11.1]} 28. Qb8+ {[%clk 0:03:28.7]} 28... Bf8 {[%clk 0:02:08.7]} 29.
Qxa7 {[%clk 0:03:24.2]} 29... Qc5 {[%clk 0:01:49.9]} 30. g4 {[%clk 0:03:06.6]}
30... Qxa7 {[%clk 0:01:21.5]} 31. c4 {[%clk 0:03:00.5]} 31... Ra5 {[%clk
0:01:17.6]} 32. Re1 {[%clk 0:02:39.6]} 32... Ra1 {[%clk 0:01:16.4]} 33. Rf1
{[%clk 0:02:37.1]} 33... Rxf1+ {[%clk 0:01:15]} 34. Kxf1 {[%clk 0:02:36.5]}
34... Qa1+ {[%clk 0:01:14.2]} 35. Ke2 {[%clk 0:02:35.3]} 35... Qb2+ {[%clk
0:01:13.7]} 36. Kf1 {[%clk 0:02:33.6]} 36... Qxb3 {[%clk 0:01:12.9]} 37. Kg2
{[%clk 0:02:31.8]} 37... Qc2+ {[%clk 0:01:12.1]} 38. Kg3 {[%clk 0:02:30.8]}
38... Qxd3 {[%clk 0:01:11.7]} 39. Kf4 {[%clk 0:02:28.7]} 39... Bd6+ {[%clk
0:01:10]} 40. Kg5 {[%clk 0:02:27.1]} 40... Qe3+ {[%clk 0:00:59.2]} 41. f4 {[%clk
0:02:24.4]} 41... Kg7 {[%clk 0:00:52.5]} 42. Kh4 {[%clk 0:01:55.5]} 42... Bxf4
{[%clk 0:00:44.9]} 43. g5 {[%clk 0:01:43.9]} 43... Qg3# {[%clk 0:00:44.8]} 0-1